[Event "St Kilda East and Caulfield Chess Club T3 2025 Under 1600 Mondays"]
[Site "St Kilda East, Australia"]
[Date "2025.08.11"]
[Round "3.5"]
[White "Heideman, Don"]
[Black "Beckman, John"]
[Result "0-1"]
[TimeControl "60 minutes per player per game plus 10 secionds per move from move one"]
[WhiteElo "478"]
[BlackElo "1201"]

1. d4 {[%clk 01:00:06]} {[%emt 00:00:03]} Nf6 {[%clk 00:59:07]} {[%emt
00:01:04]} 2. Nf3 {[%clk 01:00:02]} {[%emt 00:00:14]} d5 {[%clk 00:58:45]}
{[%emt 00:00:32]} 3. Bf4 {[%clk 00:59:56]} {[%emt 00:00:15]} g6 {[%clk
00:57:14]} {[%emt 00:01:41]} 4. e3 {[%clk 00:59:39]} {[%emt 00:00:28]} Nc6
{[%clk 00:56:36]} {[%emt 00:00:47]} 5. Bb5 {[%clk 00:59:03]} {[%emt 00:00:47]}
Bd7 {[%clk 00:56:02]} {[%emt 00:00:44]} 6. Nc3 {[%clk 00:58:18]} {[%emt
00:00:55]} a6 {[%clk 00:55:42]} {[%emt 00:00:30]} 7. Bxc6 {[%clk 00:58:04]}
{[%emt 00:00:23]} Bxc6 {[%clk 00:55:14]} {[%emt 00:00:38]} 8. O-O {[%clk
00:57:49]} {[%emt 00:00:26]} Bg7 {[%clk 00:54:34]} {[%emt 00:00:50]} 9. Re1
{[%clk 00:55:56]} {[%emt 00:02:03]} b5 {[%clk 00:53:47]} {[%emt 00:00:57]} 10.
Ne5 {[%clk 00:54:46]} {[%emt 00:01:20]} Bb7 {[%clk 00:53:22]} {[%emt 00:00:34]}
11. Qd2 {[%clk 00:52:17]} {[%emt 00:02:40]} Nh5 {[%clk 00:47:33]} {[%emt
00:05:59]} 12. Ne2 {[%clk 00:49:58]} {[%emt 00:02:30]} O-O {[%clk 00:43:22]}
{[%emt 00:04:21]} 13. c3 {[%clk 00:48:21]} {[%emt 00:01:47]} Re8 {[%clk
00:41:37]} {[%emt 00:01:55]} 14. b3 {[%clk 00:47:12]} {[%emt 00:01:18]} f6
{[%clk 00:40:22]} {[%emt 00:01:25]} 15. Ng4 {[%clk 00:45:20]} {[%emt 00:02:03]}
Nxf4 {[%emt 00:02:37]} 16. Nxf4 {[%emt 00:00:54]} h5 {[%clk 00:36:42]} {[%emt
00:00:20]} 17. Nxf6+ {[%clk 00:42:37]} {[%emt 00:02:53]} Bxf6 {[%clk 00:33:53]}
{[%emt 00:02:59]} 18. Nxg6 {[%clk 00:41:22]} {[%emt 00:01:25]} Kf7 {[%clk
00:32:02]} {[%emt 00:02:01]} 19. Nf4 {[%clk 00:40:07]} {[%emt 00:01:24]} h4
{[%clk 00:30:53]} {[%emt 00:01:19]} 20. Qd3 {[%clk 00:39:33]} {[%emt 00:00:45]}
Rg8 {[%clk 00:30:37]} {[%emt 00:00:25]} 21. Qh7+ {[%clk 00:38:32]} {[%emt
00:01:12]} Rg7 {[%clk 00:29:49]} {[%emt 00:00:57]} 22. Qh5+ {[%clk 00:37:26]}
{[%emt 00:01:17]} Kg8 {[%clk 00:27:44]} {[%emt 00:02:14]} 23. Ne6 {[%clk
00:36:15]} {[%emt 00:01:22]} Qd6 {[%clk 00:25:19]} {[%emt 00:02:35]} 24. Nxg7
{[%clk 00:35:44]} {[%emt 00:00:41]} Kxg7 {[%clk 00:25:02]} {[%emt 00:00:28]} 25.
f4 {[%clk 00:33:38]} {[%emt 00:02:15]} Rh8 {[%clk 00:24:39]} {[%emt 00:00:32]}
26. Qg4+ {[%clk 00:32:57]} {[%emt 00:00:51]} Kf7 {[%clk 00:23:09]} {[%emt
00:01:40]} 27. Rf1 {[%clk 00:31:08]} {[%emt 00:02:00]} Bc8 {[%clk 00:22:39]}
{[%emt 00:00:40]} 28. f5 {[%clk 00:29:09]} {[%emt 00:02:09]} Rg8 {[%clk
00:20:16]} {[%emt 00:02:33]} 29. Qh5+ {[%clk 00:28:06]} {[%emt 00:01:13]} Kf8
{[%clk 00:19:14]} {[%emt 00:02:54]} 30. Qh6+ {[%clk 00:26:46]} {[%emt
00:01:15]} Ke8 {[%clk 00:18:45]} {[%emt 00:00:38]} 31. Qh5+ {[%clk 00:25:03]}
{[%emt 00:01:53]} Kd7 {[%clk 00:16:54]} {[%emt 00:02:00]} 32. Qf3 {[%clk
00:22:56]} {[%emt 00:02:19]} c5 {[%clk 00:16:42]} {[%emt 00:00:23]} 33. Rae1
{[%clk 00:21:55]} {[%emt 00:01:10]} Kc6 {[%clk 00:15:51]} {[%emt 00:01:01]} 34.
e4 {[%clk 00:20:00]} {[%emt 00:02:05]} dxe4 {[%clk 00:13:36]} {[%emt 00:02:24]}
35. Qxe4+ {[%clk 00:18:58]} {[%emt 00:01:12]} Kc7 {[%clk 00:12:33]} {[%emt
00:01:14]} 36. Rd1 {[%clk 00:15:14]} {[%emt 00:03:55]} Bb7 {[%clk 00:11:14]}
{[%emt 00:01:29]} 37. d5 {[%clk 00:13:23]} {[%emt 00:02:00]} Bxc3 {[%clk
00:07:57]} {[%emt 00:03:27]} 38. Rd3 {[%clk 00:09:18]} {[%emt 00:04:15]} Bd4+
{[%clk 00:06:32]} {[%emt 00:01:36]} 39. Kh1 {[%clk 00:08:56]} {[%emt 00:00:32]}
Bxd5 {[%clk 00:06:22]} {[%emt 00:00:20]} 40. Qf4 {[%clk 00:05:10]} {[%emt
00:03:57]} Bxg2# {[%clk 00:05:48]} {[%emt 00:00:42]} 0-1